bitfinex-derivatives/quotes_SOLF0:USTF0_20250411
["timestamp","ask_amount","ask_price","bid_price","bid_amount"]
[1744340458060,0.05909913,114.55,114.52,0.05786374]
[1744340458467,0.05909913,114.55,114.52,4.52596374]
[1744340458666,0.05909913,114.55,114.53,11.12558015]
[1744340458959,0.05909913,114.55,114.53,46.98558015]
[1744340459155,0.05909913,114.55,114.54,8.7365]
[1744340464371,9.913e-05,114.55,114.54,8.7365]
[1744340464565,37.9799,114.59,114.53,46.98558015]
[1744340464566,35.86,114.59,114.58,8.7334]
[1744340464968,35.86,114.59,114.53,46.98558015]
[1744340465168,35.86,114.59,114.56,8.7347]
[1744340465861,35.92106731,114.59,114.57,8.7341]
[1744340466268,35.92106731,114.59,114.56,0.06419595]
[1744340466464,0.06106731,114.59,114.56,0.06419595]
[1744340466873,0.06106731,114.59,114.58,8.7334]
[1744340469570,0.06106731,114.59,114.56,0.06419595]
[1744340469872,8.79426731,114.59,114.56,0.06419595]
[1744340470073,44.61426731,114.59,114.56,0.06419595]
[1744340470275,35.88106731,114.59,114.56,0.06419595]
[1744340470478,44.61426731,114.59,114.56,0.06419595]
[1744340471172,8.7336,114.58,114.56,0.06419595]
[1744340471875,44.61406731,114.59,114.56,0.06419595]
[1744340472776,8.79406731,114.59,114.56,0.06419595]
[1744340472980,8.79406731,114.59,114.56,8.79909595]
[1744340473584,8.79406731,114.59,114.56,0.06419595]
[1744340473980,44.61406731,114.59,114.56,0.06419595]
[1744340474276,11.12558015,114.58,114.5,1.5192526]
[1744340474480,15.41798015,114.58,114.47,53.60068015]
[1744340474876,15.41798015,114.58,114.49,11.12558015]
[1744340475173,4.2924,114.58,114.51,11.12558015]
[1744340475480,0.06204743,114.55,114.53,8.7365]
[1744340475980,0.06204743,114.55,114.53,0.06133594]
[1744340478579,0.06204743,114.55,114.54,8.7365]
[1744340478783,0.06204743,114.55,114.53,0.06133594]
[1744340479683,0.06204743,114.55,114.53,8.79853594]
[1744340480686,0.06204743,114.55,114.54,8.7365]
[1744340481782,48.49008456,114.61,114.53,47.00691609]
[1744340481979,48.49008456,114.61,114.58,11.12558015]
[1744340482278,44.98528456,114.61,114.6,19.85748015]
[1744340482480,96.98016914,114.62,114.6,14.93480051]
[1744340482681,96.98016914,114.62,114.6,13.33148015]
[1744340482985,97.03693643,114.62,114.6,13.39294667]
[1744340483179,97.03693643,114.62,114.61,8.7311]
[1744340485989,0.05676729,114.62,114.61,8.7311]
[1744340486184,11.12558015,114.68,114.6,13.39294667]
[1744340486385,11.12558015,114.7,114.6,13.33148015]
[1744340486580,108.10574929,114.72,114.62,11.12558015]
[1744340486781,108.10574929,114.72,114.66,8.7267]
[1744340487289,51.09865159,114.69,114.66,8.78284035]
[1744340487584,42.37325159,114.69,114.66,0.05614035]
[1744340487782,42.37325159,114.69,114.62,46.94558015]
[1744340487990,42.3175,114.69,114.62,46.94558015]
[1744340488189,42.3175,114.69,114.64,8.7288]
[1744340488390,8.727,114.67,114.6,13.33148015]
[1744340488886,0.06049729,114.65,114.63,8.7293]
[1744340489789,0.06049729,114.65,114.62,0.05543965]
[1744340489790,0.06049729,114.65,114.64,8.7288]
[1744340491189,0.06049729,114.65,114.63,8.7293]
[1744340491390,0.06049729,114.65,114.62,0.05543965]
[1744340491784,0.06049729,114.65,114.62,8.78533965]
[1744340491981,0.06049729,114.65,114.62,0.05543965]
[1744340492396,0.06049729,114.65,114.63,8.7295]
[1744340492893,0.06049729,114.65,114.62,8.78543965]
[1744340495396,0.06049729,114.65,114.62,0.05543965]
[1744340495597,0.06049729,114.65,114.57,2.1828]
[1744340495791,8.7296,114.63,114.59,8.732]
[1744340496698,0.06553518,114.62,114.6,0.06017821]
[1744340497498,0.06553518,114.62,114.6,8.79207821]
[1744340497691,0.06553518,114.62,114.6,0.06017821]
[1744340500796,8.79623518,114.62,114.6,0.06017821]
[1744340501401,0.06553518,114.62,114.6,0.06017821]
[1744340501803,2.1437,114.68,114.6,11.18575836]
[1744340502098,8.7269,114.67,114.63,8.729]
[1744340503103,0.06047514,114.66,114.64,0.05916598]
[1744340503602,8.78787514,114.66,114.64,0.05916598]
[1744340504503,0.06047514,114.66,114.64,0.05916598]
[1744340505100,0.06047514,114.66,114.64,8.78796598]
[1744340508403,8.78787514,114.66,114.64,0.05916598]
[1744340508912,0.06047514,114.66,114.64,0.05916598]
[1744340510913,8.78787514,114.66,114.64,0.05916598]
[1744340513115,0.06047514,114.66,114.64,8.78796598]
[1744340514114,35.84047514,114.66,114.64,0.05916598]
[1744340514713,8.7281,114.65,114.64,0.05916598]
[1744340515012,35.84047514,114.66,114.64,0.05916598]
[1744340515212,0.06047514,114.66,114.64,8.78736598]
[1744340515714,0.06047514,114.66,114.65,8.7281]
[1744340520804,35.76,114.72,114.69,8.7247]
[1744340521010,35.76,114.72,114.66,46.88558015]
[1744340521206,36.2547042,114.74,114.68,11.12558015]
[1744340521416,36.2547042,114.74,114.72,8.7221]
[1744340521615,36.2547042,114.74,114.68,11.12558015]
[1744340521817,36.2547042,114.74,114.71,8.7231]
[1744340522018,0.06214216,114.72,114.71,8.7231]
[1744340524921,0.06214216,114.72,114.7,8.77899634]
[1744340525224,0.06214216,114.72,114.7,0.05499634]
[1744340526322,0.06214216,114.72,114.71,8.7235]
[1744340529422,0.06214216,114.72,114.7,46.94057649]
[1744340529423,35.76,114.75,114.74,8.7212]
[1744340529623,693.3177,114.77,114.74,8.7212]
[1744340529827,699.7991,114.77,114.74,8.7212]
[1744340530322,691.08,114.77,114.74,8.7212]
[1744340530514,691.14648316,114.77,114.75,8.7203]
[1744340530721,0.06648316,114.77,114.75,8.7203]
[1744340531227,0.06648316,114.77,114.74,0.05851571]
[1744340531826,0.06648316,114.77,114.75,8.72]
[1744340532120,0.06648316,114.77,114.74,0.05851571]
[1744340532322,0.06648316,114.77,114.74,11.18409586]
[1744340533128,35.72,114.81,114.76,11.12558015]
[1744340533426,35.72,114.81,114.79,8.7172]
[1744340534221,35.77522939,114.81,114.79,8.77967045]
[1744340534722,0.05522939,114.81,114.8,8.7167]
[1744340537325,35.72,114.84,114.82,8.7146]
[1744340537629,4.4497,114.88,114.8,11.12558015]
[1744340537630,35.72,114.87,114.8,11.12558015]
[1744340537929,8.7125,114.86,114.8,11.12558015]
[1744340538431,8.7125,114.86,114.82,8.7147]
[1744340538629,0.05907621,114.84,114.82,0.05828222]
[1744340539035,35.77907621,114.84,114.82,0.05828222]
[1744340539230,0.05907621,114.84,114.82,0.05828222]
[1744340539537,0.05907621,114.84,114.83,8.7144]
[1744340539734,0.05907621,114.84,114.82,0.05828222]
[1744340540535,0.05907621,114.84,114.82,8.77298222]
[1744340541036,0.05907621,114.84,114.82,0.05828222]
[1744340541433,2.2653,114.89,114.82,11.18386237]
[1744340541734,11.12558015,114.92,114.86,8.7116]
[1744340541932,2.1316,114.92,114.86,8.7116]
[1744340542137,36.15145777,114.9,114.85,8.7126]
[1744340542333,39.9892,114.89,114.83,2.1903]
[1744340542738,8.7107,114.88,114.86,0.0664313]
[1744340545439,48.76574271,114.89,114.86,0.0664313]
[1744340546041,8.7106,114.88,114.86,0.0664313]
[1744340546238,40.05554271,114.89,114.86,0.0664313]
[1744340548545,40.05554271,114.89,114.86,8.7785313]
[1744340550046,40.05554271,114.89,114.87,8.7113]
[1744340550546,40.05554271,114.89,114.86,0.0664313]
[1744340550847,37.78634271,114.89,114.86,0.0664313]
[1744340551047,0.06634271,114.89,114.86,0.0664313]
[1744340552446,0.06634271,114.89,114.86,8.7784313]
[1744340552952,8.77624271,114.89,114.86,0.0664313]
[1744340553648,0.06634271,114.89,114.86,8.7784313]
[1744340553946,37.76634271,114.89,114.86,8.7784313]
[1744340554346,46.47624271,114.89,114.86,8.7784313]
[1744340555256,8.7108,114.88,114.86,0.0664313]
[1744340555751,10.9803,114.88,114.86,0.0664313]
[1744340556254,2.2695,114.88,114.86,0.0664313]
[1744340556752,37.76634271,114.89,114.86,0.0664313]
[1744340558548,8.7111,114.88,114.86,0.0664313]
[1744340560353,8.7111,114.88,114.82,37.72]
[1744340560554,2.3113,114.88,114.82,8.7148]
[1744340560754,13.39958015,114.87,114.79,48.82558015]
[1744340560955,37.7,114.86,114.77,13.41628015]
[1744340561254,11.12558015,114.85,114.79,8.7169]
[1744340561455,8.7156,114.82,114.76,51.10528015]
[1744340561656,8.7156,114.82,114.81,0.06241668]
[1744340561853,37.7,114.83,114.76,11.12558015]
[1744340562056,11.12558015,114.81,114.74,2.2907]
[1744340562359,37.7,114.8,114.72,13.40528015]
[1744340562751,37.7,114.8,114.75,8.7204]
[1744340562951,37.7,114.8,114.72,13.40528015]
[1744340563151,0.06348249,114.77,114.75,0.05688118]
[1744340563365,0.06348249,114.77,114.75,8.77668118]
[1744340564065,37.76348249,114.77,114.75,0.05688118]
[1744340564865,46.48258249,114.77,114.75,0.05688118]
[1744340565060,8.78258249,114.77,114.75,0.05688118]
[1744340565265,0.06348249,114.77,114.75,0.05688118]
[1744340565466,0.06348249,114.77,114.75,8.77688118]
[1744340565667,0.06348249,114.77,114.75,0.05688118]
[1744340565968,46.42,114.76,114.73,8.722]
[1744340566167,37.7,114.76,114.7,2.2907]
[1744340566359,37.7,114.76,114.71,11.12558015]
[1744340566667,46.4202,114.76,114.72,8.7222]
[1744340567066,0.06061241,114.75,114.73,0.0569608]
[1744340567265,8.78111241,114.75,114.73,0.0569608]
[1744340571773,0.06061241,114.75,114.73,0.0569608]
[1744340573977,8.78111241,114.75,114.73,0.0569608]
[1744340574776,0.06061241,114.75,114.73,0.0569608]
[1744340575474,8.78121241,114.75,114.73,0.0569608]
[1744340576982,8.7212,114.74,114.7,8.724]
[1744340578081,2.2951,114.75,114.71,8.7233]
[1744340578281,0.0594521,114.73,114.71,8.77895901]
[1744340578578,0.0594521,114.73,114.71,0.05565901]
[1744340578784,36.8394521,114.73,114.71,0.05565901]
[1744340579982,45.5618521,114.73,114.71,0.05565901]
[1744340581087,36.8394521,114.73,114.71,0.05565901]
[1744340581277,36.8394521,114.73,114.71,8.77895901]
[1744340581479,0.0594521,114.73,114.71,8.77895901]
[1744340581685,0.0594521,114.73,114.71,0.05565901]
[1744340582779,0.0594521,114.73,114.72,8.7228]
[1744340583286,36.78,114.77,114.74,8.7208]
[1744340583974,36.78,114.77,114.71,11.12558015]
[1744340584180,36.78,114.77,114.69,13.24798015]
[1744340584484,8.78188985,114.74,114.72,0.05898514]
[1744340585987,8.722,114.73,114.72,0.05898514]
[1744340586488,45.56168985,114.74,114.72,0.05898514]
[1744340587694,36.84008985,114.74,114.72,0.05898514]
[1744340588989,45.56168985,114.74,114.72,0.05898514]
[1744340589287,36.84008985,114.74,114.72,0.05898514]
[1744340590389,8.722,114.73,114.72,0.05898514]
[1744340592090,8.723,114.72,114.67,2.1165]
[1744340592885,8.723,114.72,114.69,8.7249]
[1744340593185,36.8,114.71,114.69,0.05905555]
[1744340593387,7.09195303,114.7,114.64,8.7285]
[1744340593590,8.727,114.67,114.64,8.7285]
[1744340593792,43.89195303,114.67,114.61,11.52275303]
[1744340593987,8.7288,114.65,114.61,18.12975303]
[1744340594188,7.09195303,114.65,114.6,7.09195303]
[1744340594390,0.0638621,114.64,114.62,0.06507142]
[1744340594690,45.5930621,114.64,114.62,0.06507142]
[1744340595394,8.7296,114.63,114.62,0.06507142]
[1744340596190,36.8638621,114.64,114.57,2.307]
[1744340596499,4.5612,114.63,114.56,84.17095072]
[1744340596794,8.7318,114.61,114.56,47.37095072]
[1744340596994,45.5318,114.61,114.56,47.37095072]
[1744340597190,45.5318,114.61,114.57,0.06493288]
[1744340597191,0.06261559,114.6,114.57,0.06493288]
[1744340597880,0.06261559,114.6,114.57,8.79863288]
[1744340598496,0.06261559,114.6,114.58,8.7332]
[1744340599200,0.06261559,114.6,114.58,8.7334]
[1744340599902,0.06261559,114.6,114.57,0.06493288]
[1744340600494,0.06261559,114.6,114.58,8.733]
[1744340601997,0.06261559,114.6,114.57,0.06493288]
[1744340602497,8.7328,114.59,114.57,0.06493288]
[1744340602793,8.79481559,114.6,114.57,0.06493288]
[1744340605190,8.79481559,114.6,114.57,8.79903288]
[1744340605684,8.79481559,114.6,114.57,0.06493288]
[1744340607496,8.79481559,114.6,114.57,8.79853288]
[1744340610208,0.06261559,114.6,114.58,8.733]
[1744340612195,0.06261559,114.6,114.57,0.06493288]
[1744340613302,8.727,114.67,114.58,46.86875106]
[1744340613500,8.727,114.67,114.6,11.08875106]
[1744340613798,42.2636,114.69,114.6,11.08875106]
[1744340613999,42.2636,114.69,114.62,11.08875106]
[1744340614303,42.2636,114.69,114.66,8.7267]
[1744340614304,0.06360182,114.67,114.66,8.7267]
[1744340616205,8.7218,114.74,114.7,8.7241]
[1744340617501,0.05637971,114.73,114.71,0.05832641]
[1744340620803,8.77897971,114.73,114.71,0.05832641]
[1744340621005,8.77897971,114.73,114.69,8.7245]
[1744340622204,8.77897971,114.73,114.7,0.06017648]
[1744340622504,8.7228,114.72,114.7,0.06017648]
[1744340622713,0.05637971,114.73,114.7,0.06017648]
[1744340623302,8.77877971,114.73,114.7,0.06017648]
[1744340625602,0.05637971,114.73,114.7,0.06017648]
[1744340626307,0.05637971,114.73,114.71,8.7231]
[1744340627307,0.05637971,114.73,114.7,8.78407648]
[1744340628209,8.77847971,114.73,114.7,0.06017648]
[1744340628402,0.05637971,114.73,114.7,0.06017648]
[1744340628609,8.7232,114.72,114.7,0.06017648]
[1744340629509,35.76,114.71,114.66,38.0978]
[1744340629703,35.76,114.71,114.64,11.08875106]
[1744340630110,8.7247,114.7,114.66,8.7269]
[1744340630709,0.0607163,114.69,114.67,0.06569859]
[1744340633212,0.0607163,114.69,114.67,8.79209859]
[1744340633713,0.0607163,114.69,114.67,0.06569859]
[1744340633913,0.0607163,114.69,114.68,8.7258]
[1744340635911,35.76,114.71,114.67,0.06569859]
[1744340636107,35.74,114.74,114.68,11.08875106]
[1744340636511,35.74,114.74,114.71,8.7228]
[1744340637116,35.79756698,114.74,114.71,8.78526619]
[1744340637515,44.51886698,114.74,114.71,8.78526619]
[1744340640522,35.79756698,114.74,114.71,8.78526619]
[1744340644723,8.7221,114.73,114.71,0.06246619]
[1744340644922,35.79756698,114.74,114.71,0.06246619]
[1744340645326,35.79756698,114.74,114.71,8.78556619]
[1744340646626,44.51876698,114.74,114.71,8.78556619]
[1744340648423,35.79756698,114.74,114.71,8.78556619]
[1744340649928,44.51896698,114.74,114.71,8.78556619]
[1744340650128,35.79756698,114.74,114.71,8.78556619]
[1744340651229,0.05756698,114.74,114.71,0.06246619]
[1744340651422,0.05756698,114.74,114.71,7.14528568]
[1744340652123,0.05756698,114.74,114.73,7.08281949]
[1744340652326,35.74,114.77,114.73,7.08281949]
[1744340652530,702.2484,114.79,114.75,7.08281949]
[1744340652725,693.5305,114.79,114.75,7.08281949]
[1744340653223,693.5305,114.79,114.76,8.7192]
[1744340653632,693.58928222,114.79,114.76,8.78131514]
[1744340653926,693.58928222,114.79,114.77,8.7189]
[1744340654229,693.58928222,114.79,114.76,0.06211514]
[1744340654729,693.58928222,114.79,114.76,8.78121514]
[1744340656737,693.58928222,114.79,114.76,0.06211514]
[1744340659638,8.7183,114.78,114.76,0.06211514]
[1744340659938,693.58928222,114.79,114.76,0.06211514]
[1744340661036,693.58928222,114.79,114.76,8.78181514]
[1744340661440,702.30708222,114.79,114.76,8.78181514]
[1744340662137,702.30708222,114.79,114.76,0.06211514]
[1744340662541,693.58928222,114.79,114.72,35.74]
[1744340662731,693.5305,114.79,114.73,8.7216]
[1744340663135,704.5893886,114.79,114.73,8.7216]
[1744340663637,704.5893886,114.79,114.75,0.05596594]
[1744340663843,0.06337663,114.77,114.72,8.7225]
[1744340664033,35.72,114.76,114.7,2.2956]
[1744340664342,44.4402,114.76,114.72,8.7221]
[1744340664943,0.06276392,114.75,114.73,0.06103293]
[1744340665146,8.78356392,114.75,114.73,0.06103293]
[1744340666344,0.06276392,114.75,114.73,0.06103293]
[1744340667846,0.06276392,114.75,114.73,8.78263293]
[1744340668047,0.06276392,114.75,114.73,0.06103293]
[1744340668348,0.06276392,114.75,114.73,11.11992153]
[1744340668847,0.06276392,114.75,114.74,8.7212]
[1744340673248,0.06276392,114.75,114.74,15.79959674]
[1744340673445,35.72,114.79,114.78,8.7182]
[1744340673649,2.2631,114.81,114.78,7.07839674]
[1744340674149,10.9154,114.82,114.79,8.7168]
[1744340674350,2.1999,114.82,114.79,8.7168]
[1744340674643,2.25568364,114.82,114.8,8.7167]
[1744340674850,2.25568364,114.82,114.79,0.05680732]
[1744340675148,2.25568364,114.82,114.79,8.77390732]
[1744340676538,2.25568364,114.82,114.8,8.7165]
[1744340678151,2.25568364,114.82,114.79,8.77380732]
[1744340678352,2.25568364,114.82,114.79,0.05680732]
[1744340678954,10.97088364,114.82,114.79,0.05680732]
[1744340679857,8.7167,114.8,114.79,0.05680732]
[1744340680043,35.7,114.8,114.72,46.75414299]
[1744340680352,35.7,114.8,114.73,3.79386963]
[1744340680553,35.7,114.8,114.74,3.79386963]
[1744340680745,2.1999,114.82,114.72,46.75414299]
[1744340680951,2.1999,114.82,114.76,11.05414299]
[1744340681153,0.05800481,114.78,114.76,11.11330701]
[1744340681551,0.05800481,114.78,114.77,8.7183]
[1744340688251,4.81e-06,114.78,114.77,8.7183]
[1744340688454,35.7,114.83,114.81,8.7158]
[1744340688657,2.2368,114.84,114.78,46.75414299]
[1744340689061,2.2368,114.84,114.82,8.715]
[1744340689456,2.30090598,114.84,114.82,8.77392779]
[1744340690654,2.30090598,114.84,114.83,8.7144]
[1744340691564,0.06410598,114.84,114.83,8.7144]
[1744340693162,0.06410598,114.84,114.82,8.77372779]
[1744340693363,0.06410598,114.84,114.82,0.05892779]
[1744340695762,8.77780598,114.84,114.82,0.05892779]
[1744340697867,0.06410598,114.84,114.82,0.05892779]
[1744340699771,0.06410598,114.84,114.82,8.77382779]
[1744340700970,0.06410598,114.84,114.82,0.05892779]
[1744340701275,35.66,114.89,114.82,7.13056819]
[1744340701468,121.86033406,114.94,114.87,7.0716404]
[1744340701469,42.5056,114.92,114.87,7.0716404]
[1744340701675,35.66,114.92,114.89,7.0716404]
[1744340701974,35.66,114.92,114.87,7.0716404]
[1744340702174,44.3679,114.92,114.88,8.7106]
[1744340702374,0.0609468,114.91,114.88,0.05699383]
[1744340702569,0.0609468,114.91,114.89,7.0716404]
[1744340703274,0.0609468,114.91,114.9,8.7091]
[1744340704376,0.0609468,114.91,114.89,8.7097]
[1744340706874,0.0609468,114.91,114.88,35.71699383]
[1744340708579,0.0609468,114.91,114.9,8.7091]
[1744340708976,0.0609468,114.91,114.88,35.71699383]
[1744340709171,0.0609468,114.91,114.88,8.76719383]
[1744340709976,8.7697468,114.91,114.88,0.05699383]
[1744340710273,0.0609468,114.91,114.88,0.05699383]
[1744340710477,8.7096,114.9,114.88,0.05699383]
[1744340711776,0.0609468,114.91,114.88,0.05699383]
[1744340712379,40.0163,114.95,114.89,35.64]
[1744340712579,40.0163,114.95,114.89,37.9463]
[1744340712771,4.3763,114.95,114.89,37.9463]
[1744340713482,4.3763,114.95,114.92,8.7072]
[1744340713674,8.7049,114.96,114.9,11.03014087]
[1744340713876,0.06500921,114.94,114.92,0.0653383]
[1744340714978,0.06500921,114.94,114.93,8.7064]
[1744340717479,35.64,114.98,114.95,8.7047]
[1744340717975,35.64,114.98,114.96,8.7045]
[1744340718676,35.69575571,114.98,114.96,0.06483525]
[1744340719982,44.39905571,114.98,114.96,0.06483525]
[1744340720183,35.69575571,114.98,114.96,0.06483525]
[1744340720484,35.69575571,114.98,114.96,8.76923525]
[1744340721884,35.69575571,114.98,114.96,0.06483525]
[1744340723084,0.05575571,114.98,114.96,8.76913525]
[1744340723280,0.05575571,114.98,114.96,0.06483525]
[1744340723785,0.05575571,114.98,114.96,8.76923525]
[1744340724889,0.05575571,114.98,114.96,0.06483525]
[1744340726694,8.75885571,114.98,114.96,0.06483525]
[1744340726893,8.75885571,114.98,114.94,8.7059]
[1744340727499,8.7039,114.97,114.94,8.7059]
[1744340727798,0.05575571,114.98,114.94,8.7059]
[1744340727997,8.75925571,114.98,114.92,35.64]
[1744340728189,8.75925571,114.98,114.95,0.06450559]
[1744340728396,0.05575571,114.98,114.95,0.06450559]
[1744340728594,0.05575571,114.98,114.95,8.76940559]
[1744340729898,8.75895571,114.98,114.95,8.76940559]
[1744340731999,8.7045,114.96,114.95,0.06450559]
[1744340732201,0.05575571,114.98,114.95,0.06450559]
[1744340732496,8.75925571,114.98,114.95,0.06450559]
[1744340732801,0.05575571,114.98,114.95,0.06450559]
[1744340733000,0.05575571,114.98,114.96,8.7044]
[1744340733195,0.05575571,114.98,114.95,0.06450559]
[1744340734302,0.05575571,114.98,114.96,8.7044]
[1744340734603,0.05575571,114.98,114.95,0.06450559]
[1744340736199,8.7041,114.97,114.95,0.06450559]
[1744340736905,0.05575571,114.98,114.95,0.06450559]
[1744340737594,8.7042,114.97,114.95,0.06450559]
[1744340738904,0.05575571,114.98,114.95,0.06450559]
[1744340739104,11.08589658,114.98,114.91,35.58]
[1744340739304,11.03014087,114.98,114.89,11.03014087]
[1744340739505,8.7054,114.95,114.89,11.03014087]
[1744340739705,35.58,114.95,114.89,11.03014087]
[1744340740308,0.06463217,114.93,114.91,0.06476953]
[1744340742804,0.06463217,114.93,114.92,8.7076]
[1744340743507,0.06463217,114.93,114.91,8.77266953]
[1744340743806,0.06463217,114.93,114.91,0.06476953]
[1744340744200,8.7076,114.92,114.91,0.06476953]
[1744340744505,44.3076,114.92,114.91,0.06476953]
[1744340744700,44.3076,114.92,114.85,35.6]
[1744340744701,8.7096,114.9,114.85,35.6]
[1744340744900,8.7096,114.9,114.86,3.77971149]
[1744340745104,8.7087,114.91,114.87,8.7109]
[1744340745305,35.6,114.92,114.85,35.6]
[1744340745508,35.6,114.92,114.86,14.80983626]
[1744340745708,0.05591705,114.9,114.87,0.05913905]
[1744340746211,0.05591705,114.9,114.89,8.7098]
[1744340746904,0.05591705,114.9,114.89,12.48739856]
[1744340748507,0.05591705,114.9,114.89,8.7098]
[1744340750911,0.05591705,114.9,114.87,0.05913905]
[1744340751309,0.05591705,114.9,114.89,8.7098]
[1744340755107,1.705e-05,114.9,114.89,12.48638504]
[1744340755302,1.705e-05,114.9,114.89,8.7098]
[1744340755506,35.56,114.95,114.93,8.7068]
[1744340756612,35.62102097,114.95,114.93,8.76821292]
[1744340757713,35.62102097,114.95,114.94,8.7061]
[1744340759112,0.06102097,114.95,114.94,8.7061]
[1744340764220,2.1006,114.99,114.97,8.7034]
[1744340765309,2.16749172,114.99,114.97,8.76226143]
[1744340765816,10.86999172,114.99,114.97,0.05886143]
[1744340766016,2.16749172,114.99,114.97,0.05886143]
[1744340766319,8.703,114.98,114.97,0.05886143]
[1744340766517,8.703,114.98,114.94,8.7055]
[1744340767114,8.703,114.98,114.95,8.7051]
[1744340767716,8.76781025,114.98,114.95,8.76206892]
[1744340768015,0.06481025,114.98,114.95,8.76206892]
[1744340768719,8.76831025,114.98,114.95,0.05696892]
[1744340769319,0.06481025,114.98,114.95,8.76176892]
[1744340769818,8.76791025,114.98,114.95,8.76176892]
[1744340772621,0.06481025,114.98,114.95,0.05696892]
[1744340773317,8.76841025,114.98,114.95,0.05696892]
[1744340774023,8.7039,114.97,114.95,0.05696892]
[1744340774623,8.76821025,114.98,114.95,0.05696892]
[1744340775526,0.06481025,114.98,114.95,0.05696892]
[1744340777328,0.06481025,114.98,114.95,8.76206892]
[1744340778024,0.06481025,114.98,114.95,0.05696892]
[1744340778925,0.06481025,114.98,114.96,8.704]
[1744340779926,0.06481025,114.98,114.97,8.7038]
[1744340780625,0.06481025,114.98,114.96,8.7043]
[1744340781731,0.06481025,114.98,114.95,8.76186892]
[1744340782125,0.06481025,114.98,114.95,0.05696892]
[1744340783231,8.76821025,114.98,114.95,0.05696892]
[1744340783426,0.06481025,114.98,114.95,0.05696892]
[1744340783723,8.7043,114.97,114.95,0.05696892]
[1744340787126,0.06481025,114.98,114.95,0.05696892]
[1744340787733,8.7038,114.97,114.95,0.05696892]
[1744340789027,0.06481025,114.98,114.95,0.05696892]
[1744340789231,0.06481025,114.98,114.91,35.52]
[1744340789433,35.56,114.99,114.91,35.52]
[1744340789631,8.7044,114.97,114.93,8.7065]
[1744340790236,0.06226256,114.96,114.94,0.05822907]
[1744340790632,0.06226256,114.96,114.94,8.76422907]
[1744340791827,0.06226256,114.96,114.94,0.05822907]
[1744340792032,44.28696256,114.96,114.94,0.05822907]
[1744340805544,35.58226256,114.96,114.94,0.05822907]
[1744340805736,35.58226256,114.96,114.94,8.76392907]
[1744340806041,35.58226256,114.96,114.94,0.05822907]
[1744340806741,44.28716256,114.96,114.94,0.05822907]
[1744340807244,35.58226256,114.96,114.94,0.05822907]
[1744340808345,44.28716256,114.96,114.94,0.05822907]
[1744340809945,35.58226256,114.96,114.94,0.05822907]
[1744340810440,35.58226256,114.96,114.95,8.7053]
[1744340810640,0.06226256,114.96,114.95,12.49993361]
[1744340813339,0.06226256,114.96,114.95,12.49717702]
[1744340814548,0.06226256,114.96,114.95,3.79187702]
[1744340815448,0.06226256,114.96,114.95,8.7053]
[1744340815748,0.06226256,114.96,114.95,12.49778912]
[1744340820353,0.06226256,114.96,114.95,19.55604267]
[1744340821051,0.06226256,114.96,114.95,12.49778912]
[1744340821453,0.06226256,114.96,114.94,8.76392907]
[1744340821651,0.06226256,114.96,114.94,0.05822907]
[1744340822552,8.76736256,114.96,114.94,0.05822907]
[1744340822956,44.26736256,114.96,114.94,0.05822907]
[1744340823650,42.62051611,114.96,114.85,94.74190146]
[1744340823857,7.05825355,114.93,114.88,7.05825355]
[1744340824049,7.05825355,114.92,114.89,3.79798235]
[1744340824252,8.7096,114.9,114.86,56.08285072]
[1744340824451,35.5,114.9,114.87,3.79965389]
[1744340824650,35.5,114.9,114.86,47.37095072]
[1744340824852,8.76510501,114.89,114.87,0.06155562]
[1744340826153,15.82335856,114.89,114.87,0.06155562]
[1744340827555,0.05520501,114.89,114.87,0.06155562]
[1744340828958,7.11345856,114.89,114.87,0.06155562]
[1744340830260,8.7106,114.88,114.87,0.06155562]
[1744340830865,8.7106,114.88,114.84,15.77145355]
[1744340832062,8.7106,114.88,114.85,0.06375809]
[1744340832864,7.05825355,114.86,114.8,9.25445355]
[1744340833265,8.714,114.84,114.8,17.97075355]
[1744340833559,7.05825355,114.86,114.8,9.25445355]
[1744340833763,35.5,114.87,114.84,15.77145355]
[1744340833961,6.4954,114.9,114.84,7.05825355]
[1744340834161,0.06127264,114.87,114.86,7.05825355]
[1744340834361,0.06127264,114.87,114.86,7.12217121]
[1744340835362,0.06127264,114.87,114.86,0.06391766]
[1744340837859,0.06127264,114.87,114.86,15.83427121]
[1744340839264,0.06127264,114.87,114.86,0.06391766]
[1744340841168,8.77267264,114.87,114.86,0.06391766]
[1744340841471,7.11952619,114.87,114.81,7.05825355]
[1744340841667,35.52,114.86,114.83,7.05825355]
[1744340841867,35.52,114.86,114.81,7.05825355]
[1744340842569,0.06075167,114.85,114.82,0.05678363]